[Event "LTU-ch Men 2019"]
[Site "Vilnius"]
[Date "2019.03.17"]
[Round "4.10"]
[White "Macionis, Zigmas"]
[Black "Juksta, Karolis"]
[Result "0-1"]
[ECO "A40"]
[WhiteElo "1784"]
[BlackElo "2281"]
[Annotator "NA"]
[PlyCount "96"]
[EventDate "2019.??.??"]
[EventCountry "LTU"]
[SourceTitle "playchess.com"]
[Source "ChessBase"]
[SourceQuality "1"]
[TimeControl "5400+30"]

{[%evp 8,93,34,21,31,29,39,0,7,2,8,0,15,2,9,-16,39,40,40,32767,82,33,41,47,39,27,25,9,32767,45,44,67,67,32767,137,32767,0,-8,-4,32767,32767,32767,-15,-47,-15,-38,-52,-40,32767,-72,-62,32767,32767,32767,32767,11,32767,32767,32767,32767,0,32767,32767,32767,32767,32767,32767,-60,-82,32767,32767,-156,-96,-137,32767,32767,-141,-152,32767,-178,32767,-203,32767,32767,32767,32767,32767,-1353]} 1. d4 {[%emt 0:00:00]} e6 {[%emt 0:00:00]} 2. Nf3 {[%emt 0:00:12]} f5 {[%emt 0:03:04]} 3. Bf4 {[%emt 0:01:50]} Nf6 {[%emt 0:00:23]} 4. e3 {[%emt 0:00:35]} Be7 {[%emt 0:03:01]} 5. Be2 {[%emt 0:02:03] A80: Dutch Defence: Unusual White second moves} (5. h3 O-O 6. c4 d6 7. Nc3 Qe8 8. Be2 Nc6 9. Bh2 Bd7 10. a3 Qg6 11. Nh4 Qh6 12. Nf3 Qg6 13. Rg1 Ne4 {1-0 (59) Sjugirov,S (2663)-Amin,B (2710) St Petersburg 2018}) 5... O-O {[%emt 0:00:15]} 6. O-O {[%emt 0:00:07]} Nh5 {[%emt 0:05:55]} 7. Bg3 {[%emt 0:00:32]} Nxg3 {[%emt 0:00:34]} 8. hxg3 {[%emt 0:00:11]} d6 {[%emt 0:02:08]} 9. c4 {[%emt 0:00:39]} Bf6 $146 {[%emt 0:02:56]} ({Predecessor:} 9... Nd7 10. Nc3 b6 11. Qb3 Nf6 12. Rfd1 Bb7 {0-1 (47) Sosnina,E (1559)-Khachatryan,A Batumi 2014}) 10. Qb3 {[%emt 0:01:27]} Qe7 {[%emt 0:02:43]} 11. Nc3 {[%emt 0:00:30]} Nd7 {[%emt 0:13:03]} 12. e4 {[%emt 0:07:24]} c5 {[%emt 0:05:21]} 13. Rad1 {[%emt 0:11:17]} g6 {[%emt 0:19:18]} 14. Rfe1 {[%emt 0:02:49]} Qg7 {[%emt 0:03:53]} 15. exf5 {[%emt 0:04:12]} cxd4 {[%emt 0:01:49]} 16. Nb5 {[%emt 0:04:42]} Nc5 {[%emt 0:05:41]} 17. Qc2 {[%emt 0:01:13]} a6 {[%emt 0:04:18]} 18. Nbxd4 {[%emt 0:01:56]} (18. Nxd6 $16 exf5 19. b4) 18... e5 {[%emt 0:00:06]} 19. Ne6 $1 {[%emt 0:02:15]} Bxe6 {[%emt 0:04:47]} 20. fxe6 {[%emt 0:00:12]} e4 (20... Qe7 $142) 21. Nh2 {[%emt 0:03:16]} Bd4 {[%emt 0:04:11]} 22. Rf1 {[%emt 0:01:24]} Rae8 {[%emt 0:03:36]} 23. b4 {[%emt 0:00:32]} Nxe6 {[%emt 0:00:13]} 24. Ng4 {[%emt 0:04:33]} h5 {[%emt 0:06:31]} 25. Ne3 {[%emt 0:00:35]} Bxe3 {[%emt 0:02:53]} 26. fxe3 {[%emt 0:02:21]} Qe5 {[%emt 0:00:37]} 27. Rxf8+ {[%emt 0:08:39]} Nxf8 {[%emt 0:00:08]} 28. Rf1 {[%emt 0:02:48]} (28. c5 $11 dxc5 29. bxc5) 28... Qxg3 {[%emt 0:00:24]} 29. Qd2 {[%emt 0:01:20]} Qg5 {[%emt 0:01:15]} 30. Bd1 {[%emt 0:01:16]} h4 {[%emt 0:01:33]} 31. Qf2 {[%emt 0:01:16]} Qe7 {[%emt 0:02:03]} 32. Bb3 {[%emt 0:00:51]} Rd8 {[%emt 0:01:37]} 33. Qf4 {[%emt 0:03:34]} Kg7 $1 {[%emt 0:00:23]} 34. Bc2 {[%emt 0:01:45]} d5 {[%emt 0:01:13]} 35. cxd5 {[%emt 0:01:02]} Rxd5 {[%emt 0:00:17]} 36. Bxe4 {[%emt 0:06:34]} Rb5 {[%emt 0:00:48]} 37. Qf3 {[%emt 0:04:27]} (37. a3 $11) 37... Nh7 {[%emt 0:00:57]} 38. Bb1 {[%emt 0:03:33]} Rxb4 {[%emt 0:00:25]} 39. e4 {[%emt 0:02:15]} (39. Bc2 $142) 39... Rb5 {[%emt 0:00:30]} 40. Qc3+ {[%emt 0:00:41]} Qe5 {[%emt 0:00:29]} 41. Qh3 {[%emt 0:01:24]} Qd4+ {[%emt 0:00:33]} 42. Kh1 {[%emt 0:00:25]} Nf6 {[%emt 0:00:12]} 43. Qe6 {[%emt 0:01:13]} ({Wrong is} 43. e5 $2 Nh5 $19) 43... Qe5 {[%emt 0:00:22]} 44. Qh3 {[%emt 0:01:49]} Nh5 {[%emt 0:00:57]} 45. Qd7+ {[%emt 0:01:50]} Kh6 {[%emt 0:00:20]} 46. Rc1 {[%emt 0:00:50]} Ng3+ {[%emt 0:00:11]} 47. Kg1 $19 {[%emt 0:00:23]} Ne2+ {[%emt 0:00:06]} 48. Kf1 {[%emt 0:00:21]} Nxc1 {[%emt 0:00:08]} 0-1

[Event "LTU-ch Men 2019"]
[Site "Vilnius"]
[Date "2019.03.17"]
[Round "4.11"]
[White "Likatavicius, Rapolas"]
[Black "Zaksaite, Salomeja"]
[Result "0-1"]
[ECO "D85"]
[WhiteElo "1769"]
[BlackElo "2260"]
[Annotator "NA"]
[PlyCount "96"]
[EventDate "2019.??.??"]
[EventCountry "LTU"]
[SourceTitle "playchess.com"]
[Source "ChessBase"]
[SourceQuality "1"]
[TimeControl "5400+30"]

{[%evp 23,96,61,50,54,85,87,69,77,83,76,93,72,116,10,5,0,5,-10,0,-137,-129,-141,-124,-210,-194,-175,32767,32767,-266,-264,32767,-170,-172,32767,-183,32767,32767,32767,32767,32767,32767,32767,32767,32767,32767,32767,32767,-269,-252,32767,32767,32767,32767,32767,32767,32767,32767,32767,32767,32767,32767,32767,-311,-873,-122,-678,-1200,-797,-1183,32767,-4626,-2239,-4618,-4610,-11381]} 1. d4 {[%emt 0:00:00]} Nf6 {[%emt 0:00:00]} 2. c4 {[%emt 0:00:02]} g6 {[%emt 0:00:50]} 3. Nc3 {[%emt 0:00:07]} d5 {[%emt 0:00:03]} 4. cxd5 {[%emt 0:00:56]} Nxd5 {[%emt 0:00:04]} 5. e4 {[%emt 0:00:16]} Nxc3 {[%emt 0:00:04]} 6. bxc3 {[%emt 0:00:05]} Bg7 {[%emt 0:00:03]} 7. Nf3 {[%emt 0:00:05]} c5 {[%emt 0:01:11]} 8. Rb1 {[%emt 0:00:20]} Nc6 {[%emt 0:01:22]} 9. d5 {[%emt 0:00:27]} Ne5 {[%emt 0:01:09]} 10. Nxe5 {[%emt 0:01:13]} Bxe5 {[%emt 0:00:04]} 11. Bb5+ {[%emt 0:00:05] D85: Exchange Grünfeld: Unusual White 7th moves and lines with 7 Nf3} (11. Qa4+ Bd7 12. Qb3 Qc7 13. g3 O-O 14. Bg2 e6 15. c4 Qa5+ 16. Bd2 Qa6 17. O-O {½-½ (17) Arnold,M (2504)-Goh,W (2451) Budapest 2011}) 11... Bd7 {[%emt 0:00:31]} 12. Qd3 {[%emt 0:00:29]} O-O {[%emt 0:07:03]} 13. Bh6 {[%emt 0:00:19]} Bg7 {[%emt 0:05:40]} 14. Bxg7 {[%emt 0:00:22]} Kxg7 {[%emt 0:00:04]} 15. O-O {[%emt 0:00:16]} Bxb5 $146 {[%emt 0:10:03]} ({Predecessor:} 15... a6 16. Bxd7 Qxd7 17. Rb6 Qc7 18. Rfb1 Rfb8 {1-0 (27) Toca,A-Nad,R (1864) ICCF email 2015}) 16. Rxb5 {[%emt 0:04:59]} b6 {[%emt 0:00:06]} 17. c4 {[%emt 0:03:37]} e5 {[%emt 0:08:28]} 18. f4 {[%emt 0:03:55]} ({White should play} 18. a4 $16) 18... exf4 $1 {[%emt 0:04:12]} 19. Rxf4 {[%emt 0:01:38]} Qg5 {[%emt 0:00:11]} 20. Rf1 {[%emt 0:15:45]} Qe5 {[%emt 0:06:37]} 21. d6 {[%emt 0:10:02]} (21. Re1 $11) 21... Rad8 {[%emt 0:03:25]} 22. d7 {[%emt 0:05:17]} f6 {[%emt 0:00:16]} 23. Qd5 {[%emt 0:04:21]} (23. Rbb1 $17 {keeps fighting.}) 23... Qe7 {[%emt 0:05:52]} ({Less strong is} 23... Qxd5 24. exd5 Rxd7 25. Re1 $15) 24. Rd1 {[%emt 0:01:38]} Rf7 {[%emt 0:00:05]} 25. Qc6 {[%emt 0:00:45]} Rxd7 {[%emt 0:00:30]} 26. Rbb1 {[%emt 0:00:05]} Qe8 {[%emt 0:26:58]} 27. Rd6 {[%emt 0:05:19]} Rd8 {[%emt 0:05:10]} 28. a4 {[%emt 0:06:27]} Qxc6 {[%emt 0:07:39]} 29. Rxc6 {[%emt 0:00:05]} Rd4 {[%emt 0:00:37]} 30. a5 {[%emt 0:00:05]} Rxe4 {[%emt 0:04:44]} 31. axb6 {[%emt 0:00:10]} axb6 {[%emt 0:00:02]} 32. Rbxb6 {[%emt 0:00:24]} Rxc4 {[%emt 0:00:04]} 33. Rb5 {[%emt 0:00:12]} Rc1+ {[%emt 0:00:29]} 34. Kf2 {[%emt 0:00:04]} Rc2+ {[%emt 0:00:13]} 35. Kf3 {[%emt 0:01:27]} Ra7 {[%emt 0:00:22]} 36. Rcxc5 {[%emt 0:00:53]} Ra3+ {[%emt 0:00:07]} 37. Ke4 {[%emt 0:00:16]} Rxg2 {[%emt 0:01:32]} 38. Rc7+ {[%emt 0:00:04]} Kh6 {[%emt 0:00:05]} 39. Rbb7 {[%emt 0:00:03]} Kg5 {[%emt 0:01:24]} 40. Rxh7 {[%emt 0:00:15]} f5+ {[%emt 0:01:17]} 41. Kd5 {[%emt 0:02:56]} f4 {[%emt 0:01:13]} 42. Rb4 {[%emt 0:08:13]} Rd2+ {[%emt 0:00:28]} 43. Ke5 $2 {[%emt 0:09:05]} (43. Kc4) 43... Re3+ {[%emt 0:00:19]} 44. Re4 {[%emt 0:00:01]} Rde2 {[%emt 0:00:40]} 45. Rxe3 {[%emt 0:00:48]} Rxe3+ {[%emt 0:00:04]} ({Stronger than} 45... fxe3 46. Ke4 $11) 46. Kd4 {[%emt 0:00:08]} Kg4 {[%emt 0:00:36]} 47. Rg7 {[%emt 0:01:20]} g5 {[%emt 0:00:11]} 48. Rf7 {[%emt 0:00:47]} Rh3 $19 {[%emt 0:00:13]} 0-1

[Event "LTU-ch Men 2019"]
[Site "Vilnius"]
[Date "2019.03.17"]
[Round "4.12"]
[White "Kaunas, Kestutis"]
[Black "Voronov, Vadim"]
[Result "1-0"]
[ECO "D06"]
[WhiteElo "2156"]
[BlackElo "1784"]
[Annotator "NA"]
[PlyCount "80"]
[EventDate "2019.??.??"]
[EventCountry "LTU"]
[SourceTitle "playchess.com"]
[Source "ChessBase"]
[SourceQuality "1"]
[TimeControl "5400+30"]

{[%evp 8,80,51,36,57,27,37,50,58,41,43,31,36,43,52,57,70,71,66,77,83,87,32767,116,32767,105,32767,95,81,68,119,32767,32767,79,76,81,83,74,108,102,32767,115,32767,32767,119,32767,252,242,242,228,231,32767,240,32767,32767,32767,32767,32767,32767,32767,32767,32767,32767,32767,32767,32767,32767,32767,32767,32767,572,32767,32767,32767,29999]} 1. d4 {[%emt 0:00:00]} d5 {[%emt 0:00:04]} 2. c4 {[%emt 0:00:02]} Bf5 {[%emt 0:00:26]} 3. cxd5 {[%emt 0:02:54]} Bxb1 {[%emt 0:00:07]} 4. Qa4+ {[%emt 0:13:29]} c6 {[%emt 0:00:28]} 5. dxc6 {[%emt 0:09:15]} Nxc6 {[%emt 0:00:09]} 6. Rxb1 {[%emt 0:00:20]} Qxd4 {[%emt 0:00:12]} 7. Qxd4 {[%emt 0:00:31]} Nxd4 {[%emt 0:00:04]} 8. Bd2 {[%emt 0:01:35] D06: Queen's Gambit: Symmetrical and Baltic Defences} (8. e3 Nc6 9. Nf3 e6 10. a3 Bd6 11. b4 Ke7 12. Bb2 Nf6 13. Bd3 Rhd8 14. Ke2 h6 15. Rhc1 Rac8 16. Rc2 a5 17. bxa5 Nxa5 18. Bc3 b6 19. Nd4 Kf8 20. Nb5 Be7 {½-½ (20) Markus,R (2662)-Miladinovic,I (2545) Niksic 2016}) 8... e6 {[%emt 0:05:46]} 9. e3 {[%emt 0:04:00]} Nc6 {[%emt 0:01:59]} 10. Bb5 {[%emt 0:00:21]} Rc8 {[%emt 0:05:31]} 11. Rc1 {[%emt 0:02:29]} Nge7 {[%emt 0:01:13]} 12. Nf3 {[%emt 0:00:22]} a6 {[%emt 0:00:16]} 13. Ba4 {[%emt 0:00:30]} b5 {[%emt 0:04:29]} 14. Bb3 {[%emt 0:00:05]} g6 $146 {[%emt 0:09:05]} ({Predecessor:} 14... Ng6 15. Nd4 Kd7 16. Nxc6 Rxc6 17. Rxc6 Kxc6 {½-½ (44) Vourtsas,A-Kazantzidis,P (2125) Chalkidiki 2002}) 15. Bc3 {[%emt 0:02:06]} Rg8 {[%emt 0:04:18]} 16. Ke2 {[%emt 0:05:14]} Bg7 {[%emt 0:01:07]} 17. Ng5 {[%emt 0:03:03]} Bxc3 {[%emt 0:05:17]} 18. Rxc3 {[%emt 0:00:05]} Na5 {[%emt 0:00:51]} 19. Nxh7 {[%emt 0:01:54]} Rxc3 {[%emt 0:01:11]} 20. bxc3 {[%emt 0:03:07]} Rh8 {[%emt 0:03:34]} 21. Nf6+ {[%emt 0:00:59]} Kf8 {[%emt 0:00:23]} 22. Ne4 {[%emt 0:08:37]} Rh5 {[%emt 0:04:40]} 23. g4 {[%emt 0:04:59]} Rh4 {[%emt 0:04:05]} 24. Kf3 {[%emt 0:03:37]} Nxb3 {[%emt 0:01:32]} 25. axb3 {[%emt 0:00:05]} f5 {[%emt 0:03:15]} 26. Nc5 {[%emt 0:07:07]} Nd5 {[%emt 0:05:29]} (26... Kf7 $16) 27. Nxe6+ {[%emt 0:01:29]} Kf7 {[%emt 0:02:10]} 28. gxf5 {[%emt 0:01:41]} gxf5 {[%emt 0:00:27]} 29. Nd4 {[%emt 0:02:20]} Nxc3 {[%emt 0:02:43]} 30. Nxf5 {[%emt 0:05:11]} Rh3+ {[%emt 0:01:12]} 31. Kg4 {[%emt 0:03:06]} Rh8 {[%emt 0:00:21]} 32. h4 {[%emt 0:02:11]} Ne4 {[%emt 0:01:03]} 33. Ra1 {[%emt 0:01:06]} Nxf2+ {[%emt 0:03:21]} 34. Kf3 {[%emt 0:00:36]} Kf6 {[%emt 0:01:56]} 35. e4 {[%emt 0:02:37]} Nd3 {[%emt 0:01:37]} 36. Rxa6+ {[%emt 0:00:16]} Ke5 {[%emt 0:00:32]} 37. Rb6 {[%emt 0:01:59]} Ne1+ {[%emt 0:02:05]} 38. Kf2 {[%emt 0:04:59]} Nd3+ $2 {[%emt 0:02:22]} (38... Nc2 {is tougher.} 39. Rxb5+ (39. Kf3) 39... Kxe4 40. Rc5 Rf8 $18) 39. Ke3 {[%emt 0:01:32]} Rd8 {[%emt 0:02:29]} 40. Nh6 {[%emt 0:01:00]} Ra8 1-0

[Event "LTU-ch Men 2019"]
[Site "Vilnius"]
[Date "2019.03.17"]
[Round "4.13"]
[White "Valantiejus, Vaidotas"]
[Black "Kalinauskas, Vytautas"]
[Result "1-0"]
[ECO "B06"]
[WhiteElo "2048"]
[BlackElo "1783"]
[Annotator "NA"]
[PlyCount "115"]
[EventDate "2019.??.??"]
[EventCountry "LTU"]
[SourceTitle "playchess.com"]
[Source "ChessBase"]
[SourceQuality "1"]
[TimeControl "5400+30"]

1. e4 {[%emt 0:00:00]} g6 {[%emt 0:00:00]} 2. d4 {[%emt 0:00:00]} Bg7 {[%emt 0:00:00]} 3. Nc3 {[%emt 0:00:07]} d6 {[%emt 0:00:27]} 4. f4 {[%emt 0:00:19]} e5 {[%emt 0:01:36]} (4... Nf6 $11) 5. Nf3 {[%emt 0:03:40]} (5. dxe5 dxe5 6. Qxd8+ Kxd8 7. Nf3 Nc6 8. fxe5 h6 9. Bf4 g5 10. O-O-O+ Bd7 11. Bg3 g4 12. Nd4 Nge7 {1-0 (23) Aleksandrov,A (2596)-Filipets,E (2240) Minsk 2015}) 5... exd4 {[%emt 0:03:23]} 6. Nxd4 {[%emt 0:00:14] B06: Modern Defence} Nc6 {[%emt 0:01:50]} 7. Nxc6 {[%emt 0:07:02]} bxc6 {[%emt 0:00:01]} 8. Bc4 {[%emt 0:01:35]} Qh4+ {[%emt 0:04:11]} 9. g3 {[%emt 0:00:36]} Qh3 {[%emt 0:00:20]} 10. Bf1 {[%emt 0:06:20]} Qe6 {[%emt 0:02:36]} 11. Bg2 $146 {[%emt 0:03:33]} ({Predecessor:} 11. Bd3 f5 12. Qe2 Ne7 13. O-O O-O 14. Re1 fxe4 15. Nxe4 Nf5 16. c3 d5 17. Nc5 Qd6 {1-0 (17) Zdanevich,G-Danilchenko,M Armavir 1995}) 11... Ba6 {[%emt 0:01:17]} 12. Ne2 {[%emt 0:02:17]} Qc4 {[%emt 0:14:44]} 13. c3 {[%emt 0:05:41]} Ne7 {[%emt 0:07:43]} 14. Nd4 {[%emt 0:08:21]} Bxd4 {[%emt 0:05:07]} 15. cxd4 {[%emt 0:00:13]} Qb4+ {[%emt 0:03:25]} 16. Kf2 {[%emt 0:10:42]} O-O {[%emt 0:14:36]} 17. Re1 {[%emt 0:03:17]} d5 {[%emt 0:05:17]} 18. Qd2 {[%emt 0:06:25]} Qd6 {[%emt 0:04:26]} 19. e5 {[%emt 0:01:51]} Qe6 {[%emt 0:00:56]} 20. b3 {[%emt 0:01:04]} Qf5 {[%emt 0:07:22]} 21. Ba3 {[%emt 0:00:42]} Rfe8 {[%emt 0:00:18]} 22. Rac1 {[%emt 0:00:45]} Rab8 {[%emt 0:04:57]} 23. Bxe7 {[%emt 0:01:21]} Rxe7 {[%emt 0:00:01]} 24. Rxc6 {[%emt 0:00:13]} Bb7 {[%emt 0:03:33]} 25. Rc5 {[%emt 0:01:37]} ({Inferior is} 25. Bxd5 Qd7 $17 {[%mdl 64] Pin}) 25... c6 {[%emt 0:02:29]} 26. b4 {[%emt 0:02:32]} a6 {[%emt 0:02:17]} 27. Bf1 {[%emt 0:00:31]} h5 {[%emt 0:02:05]} 28. h4 {[%emt 0:03:26]} Kg7 {[%emt 0:01:07]} 29. Kg2 {[%emt 0:00:23]} Bc8 {[%emt 0:02:36]} 30. Kh2 {[%emt 0:00:15]} Reb7 {[%emt 0:01:37]} 31. a3 {[%emt 0:00:16]} Bd7 {[%emt 0:01:47]} 32. e6 {[%emt 0:07:53]} Bxe6 {[%emt 0:01:43]} 33. Rxc6 {[%emt 0:01:13]} a5 {[%emt 0:01:04]} 34. Re5 {[%emt 0:01:11]} Qb1 {[%emt 0:00:40]} 35. Rc1 $2 {[%emt 0:06:41]} (35. Bd3 $18 {is the precise move to win.} Qb3 36. f5 Bxf5 37. Bxf5) 35... Qb3 {[%emt 0:00:18]} 36. Re3 {[%emt 0:01:17]} Qa4 {[%emt 0:00:27]} 37. b5 {[%emt 0:04:45]} Bd7 {[%emt 0:01:16]} 38. Be2 $11 {[%emt 0:00:50]} Bg4 {[%emt 0:00:10]} 39. Bf1 {[%emt 0:06:54]} Bd7 {[%emt 0:00:15]} 40. Rb1 {[%emt 0:00:59]} Bxb5 {[%emt 0:00:19]} 41. Reb3 {[%emt 0:00:18]} Bc6 {[%emt 0:00:22]} 42. Rxb7 {[%emt 0:00:10]} Rxb7 {[%emt 0:00:09]} 43. Rxb7 {[%emt 0:00:06]} Bxb7 {[%emt 0:00:04]} 44. Qe3 {[%emt 0:00:24]} Qc2+ {[%emt 0:00:43]} 45. Bg2 {[%emt 0:00:44]} Qc4 {[%emt 0:00:37]} 46. Qe5+ {[%emt 0:00:31]} Kf8 {[%emt 0:01:46]} 47. Qb8+ {[%emt 0:00:49]} Qc8 {[%emt 0:00:26]} 48. Qxc8+ {[%emt 0:00:20]} Bxc8 {[%emt 0:00:01]} 49. Bxd5 {[%emt 0:00:12]} Ke7 {[%emt 0:00:49]} 50. Kg2 {[%emt 0:00:20]} Bf5 {[%emt 0:01:00]} 51. Kf3 {[%emt 0:00:11]} Bg4+ {[%emt 0:00:42]} 52. Ke3 {[%emt 0:00:15]} f6 {[%emt 0:00:06]} 53. Be4 {[%emt 0:00:26]} f5 {[%emt 0:00:29]} 54. Bd5 {[%emt 0:00:24]} Bd1 {[%emt 0:00:08]} 55. Kd3 {[%emt 0:00:18]} Ba4 {[%emt 0:00:12]} 56. Kc4 {[%emt 0:00:14]} Bc2 {[%emt 0:01:06]} 57. Kb5 {[%emt 0:00:41]} a4 {[%emt 0:00:27]} 58. Kb4 {[%emt 0:00:12]} 1-0

[Event "LTU-ch Men 2019"]
[Site "Vilnius"]
[Date "2019.03.17"]
[Round "4.14"]
[White "Bagdanskis, Dangis"]
[Black "Eigminas, Kipras"]
[Result "0-1"]
[ECO "A48"]
[WhiteElo "1716"]
[BlackElo "2034"]
[Annotator "NA RC"]
[PlyCount "46"]
[EventDate "2019.??.??"]
[EventCountry "LTU"]
[SourceTitle "playchess.com"]
[Source "ChessBase"]
[SourceQuality "1"]
[TimeControl "5400+30"]

{[%evp 11,39,8,10,5,17,0,0,3,31,5,16,12,12,-24,4,0,0,-2,20,20,27,21,85,77,82,24,22,21,27,51]} 1. d4 {[%emt 0:00:00]} Nf6 {[%emt 0:00:00]} 2. Nf3 {[%emt 0:00:00]} g6 {[%emt 0:00:00]} 3. Bf4 {[%emt 0:01:23]} Bg7 {[%emt 0:00:00]} 4. e3 {[%emt 0:00:06]} O-O {[%emt 0:00:00]} 5. Be2 {[%emt 0:00:08]} c5 {[%emt 0:00:00]} 6. c3 {[%emt 0:00:16]} d6 {[%emt 0:00:06]} 7. O-O {[%emt 0:05:39]} b6 {[%emt 0:00:05]} 8. Qb3 {[%emt 0:02:19]} Nbd7 {[%emt 0:03:25]} 9. h3 {[%emt 0:05:35]} Bb7 {[%emt 0:00:52]} 10. Nbd2 {[%emt 0:01:34]} Qc7 {[%emt 0:00:26] A48: 1 d4 Nf6 2 Nf3 g6: Torre, London and Colle Systems} (10... a6) 11. Bh2 {[%emt 0:09:19]} a6 {[%emt 0:00:11]} 12. Ne1 $146 {[%emt 0:00:35]} ({Predecessor:} 12. a4 Rab8 13. Rfd1 b5 14. Rdc1 c4 15. Qc2 Qc6 16. axb5 axb5 17. b4 Ra8 18. Ne1 e5 19. dxe5 dxe5 20. Ndf3 {0-1 (46) Kotlar,A (2047)-Peleikis,H (1986) Binz 2017}) 12... e5 {[%emt 0:03:22]} 13. dxe5 {[%emt 0:07:01]} dxe5 {[%emt 0:01:29]} 14. Bf3 {[%emt 0:00:07]} Rad8 {[%emt 0:02:55]} 15. Bxb7 {[%emt 0:00:18]} Qxb7 {[%emt 0:00:01]} 16. a4 {[%emt 0:02:31]} e4 {[%emt 0:03:15]} 17. Nc4 {[%emt 0:00:16]} Qc6 {[%emt 0:01:54]} 18. Rd1 {[%emt 0:00:18]} b5 {[%emt 0:01:38]} 19. axb5 axb5 20. Nd6 $14 {[%emt 0:02:27]} Nb6 {[%emt 0:01:32]} 21. Nxf7 {[%emt 0:00:30]} Rxd1 {[%emt 0:00:04]} 22. Nh6+ {[%emt 0:00:01]} Kh8 {[%emt 0:00:25]} 23. Qg8+ {[%emt 0:00:02]} Nxg8 {[%emt 0:00:02]} 0-1

[Event "LTU-ch Men 2019"]
[Site "Vilnius"]
[Date "2019.03.17"]
[Round "5.3"]
[White "Kalvaitis, Sigitas"]
[Black "Zickus, Simonas"]
[Result "1/2-1/2"]
[ECO "B31"]
[WhiteElo "2143"]
[BlackElo "2330"]
[Annotator "NA"]
[PlyCount "36"]
[EventDate "2019.??.??"]
[EventCountry "LTU"]
[SourceTitle "playchess.com"]
[Source "ChessBase"]
[SourceQuality "1"]
[TimeControl "5400+30"]

1. e4 {[%emt 0:00:40]} c5 {[%emt 0:00:00]} 2. Nf3 {[%emt 0:00:04]} Nc6 {[%emt 0:00:00]} 3. Bb5 {[%emt 0:00:04]} g6 {[%emt 0:00:04]} 4. O-O {[%emt 0:00:08]} Bg7 {[%emt 0:00:03]} 5. c3 {[%emt 0:00:25]} e5 {[%emt 0:00:28]} 6. d4 {[%emt 0:00:04]} cxd4 {[%emt 0:00:38]} 7. cxd4 {[%emt 0:00:11]} exd4 {[%emt 0:00:47]} 8. Bf4 {[%emt 0:00:34]} Nge7 {[%emt 0:00:16]} 9. Bd6 {[%emt 0:01:19]} O-O {[%emt 0:00:06]} 10. Nbd2 {[%emt 0:00:13]} a6 {[%emt 0:00:18]} 11. Bc4 {[%emt 0:00:04]} b5 {[%emt 0:00:12]} 12. Bd5 {[%emt 0:00:25]} Bb7 {[%emt 0:00:51]} 13. Nb3 {[%emt 0:05:23]} Nxd5 {[%emt 0:00:13]} 14. Bxf8 {[%emt 0:00:10]} Qxf8 {[%emt 0:03:34]} 15. exd5 {[%emt 0:00:04]} Ne5 {[%emt 0:00:31]} 16. Nbxd4 {[%emt 0:05:39]} Qd6 {[%emt 0:08:06]} 17. Rc1 {[%emt 0:13:49]} Qxd5 $14 {[%emt 0:21:00]} 18. b3 {[%emt 0:06:37]} a5 {[%emt 0:17:25]} 1/2-1/2

[Event "LTU-ch Men 2019"]
[Site "Vilnius"]
[Date "2019.03.17"]
[Round "5.5"]
[White "Eigminas, Kipras"]
[Black "Mickevicius, Juras"]
[Result "1/2-1/2"]
[ECO "B11"]
[WhiteElo "2034"]
[BlackElo "2273"]
[Annotator "ChessBase"]
[PlyCount "43"]
[EventDate "2019.??.??"]
[EventCountry "LTU"]
[SourceTitle "playchess.com"]
[Source "ChessBase"]
[SourceQuality "1"]
[TimeControl "5400+30"]

1. e4 {[%emt 0:00:00]} c6 {[%emt 0:00:00]} 2. Nf3 {[%emt 0:00:00]} d5 {[%emt 0:00:00]} 3. Nc3 {[%emt 0:00:00]} Bg4 {[%emt 0:00:00]} 4. h3 {[%emt 0:00:00]} Bxf3 {[%emt 0:00:02]} 5. Qxf3 {[%emt 0:00:00]} e6 {[%emt 0:00:01]} 6. Be2 {[%emt 0:00:00]} Nf6 {[%emt 0:00:38]} 7. O-O {[%emt 0:00:08]} Nbd7 {[%emt 0:00:13]} 8. d4 {[%emt 0:00:07]} dxe4 {[%emt 0:00:54]} 9. Nxe4 {[%emt 0:00:02]} Nxe4 {[%emt 0:00:06]} 10. Qxe4 {[%emt 0:00:04]} Nf6 {[%emt 0:00:02]} 11. Qd3 {[%emt 0:00:05]} Bd6 {[%emt 0:00:06]} 12. Rd1 {[%emt 0:00:17]} Qc7 {[%emt 0:00:38]} 13. Bf3 {[%emt 0:00:46]} Bh2+ {[%emt 0:10:39]} 14. Kh1 {[%emt 0:02:53]} Bf4 {[%emt 0:00:05]} 15. c4 {[%emt 0:00:45]} O-O {[%emt 0:00:59]} 16. b4 {[%emt 0:02:02]} Bxc1 {[%emt 0:11:21]} 17. Raxc1 {[%emt 0:00:19]} Rad8 {[%emt 0:01:26]} 18. Qc3 {[%emt 0:03:34]} Rd7 {[%emt 0:02:12]} 19. a4 {[%emt 0:05:50]} a6 {[%emt 0:00:30]} 20. a5 {[%emt 0:01:33]} Rfd8 {[%emt 0:01:23]} 21. g3 {[%emt 0:00:34]} h6 {[%emt 0:00:24]} 22. Kg2 {[%emt 0:00:49]} 1/2-1/2